bitfinex-derivatives/quotes_BNBF0:USTF0_20250302
["timestamp","ask_amount","ask_price","bid_price","bid_amount"]
[1740936398906,0.26819949,629.21,626.66,0.29295894]
[1740936399107,0.26819949,629.2,626.65,1.807]
[1740936399310,0.26819949,629.19,626.66,1.07269833]
[1740936399511,0.26819949,629.18,626.66,1.07269833]
[1740936399810,0.31793469,629.06,626.66,1.07269833]
[1740936400010,0.26819949,629.05,626.65,1.807]
[1740936400209,0.26819949,629.04,626.65,1.807]
[1740936400404,0.26819242,629.03,626.65,1.807]
[1740936400610,0.26819242,629.02,626.66,1.07399235]
[1740936400808,0.26819242,629.01,626.66,1.07399235]
[1740936401113,0.26819242,629.0,626.66,1.431]
[1740936401309,0.26819242,629.05,626.66,1.431]
[1740936401707,0.26819242,629.05,626.67,1.07457645]
[1740936401907,0.26819242,629.04,626.67,1.07457645]
[1740936402107,0.26817848,629.03,626.67,1.07457645]
[1740936402410,0.26817848,629.03,626.66,1.431]
[1740936402411,0.26817848,629.02,626.68,1.07457645]
[1740936402609,0.26817848,629.05,626.68,1.07457645]
[1740936402805,0.31793469,629.06,626.69,1.07457645]
[1740936402806,0.26817848,629.04,626.69,1.07457645]
[1740936403010,0.26817848,629.03,626.69,1.07457645]
[1740936403209,0.26817848,629.05,626.69,1.07457645]
[1740936403405,0.26817848,629.04,626.7,1.39370841]
[1740936403710,0.26817848,629.03,626.7,0.31913196]
[1740936403910,0.26817848,629.02,626.7,0.31913196]
[1740936404112,0.26817848,629.01,626.7,0.31913196]
[1740936404317,0.26817848,629.0,626.7,0.31913196]
[1740936404613,0.26817848,628.99,626.7,0.31913196]
[1740936404814,0.26817848,628.98,626.7,0.31913196]
[1740936405014,0.26817848,628.97,626.7,0.31913196]
[1740936405213,0.26817848,628.96,626.7,0.31913196]
[1740936405418,0.31793469,629.06,626.7,0.31913196]
[1740936405617,0.26817524,629.05,626.7,0.31913196]
[1740936405815,0.26817524,629.04,626.71,0.29293444]
[1740936406017,0.26817524,629.03,626.71,0.29293444]
[1740936406216,0.26817524,629.02,626.71,0.29293444]
[1740936406417,0.26817524,629.01,626.71,0.29293444]
[1740936406615,0.26817524,629.0,626.76,1.15047448]
[1740936406813,0.26817524,629.05,626.76,1.15047448]
[1740936407011,0.26817524,629.04,626.76,1.15047448]
[1740936407316,0.26817524,629.03,626.76,1.15047448]
[1740936407619,0.26817524,629.02,626.76,1.15047448]
[1740936407813,0.26817524,629.01,626.77,1.06981494]
[1740936408017,0.26817524,629.0,626.78,1.1232693]
[1740936408218,0.31793469,629.06,626.79,1.1232693]
[1740936408219,0.26817524,628.99,626.79,1.1232693]
[1740936408418,0.26817524,628.98,626.8,1.36267185]
[1740936408917,0.26817524,628.97,626.82,0.31907086]
[1740936409118,0.26817524,628.96,626.83,1.12416501]
[1740936409419,0.26817524,628.95,626.84,2.4541509]
[1740936409612,0.26817524,628.94,626.85,2.4541509]
[1740936409817,0.26817524,628.93,626.86,3.0860261]
[1740936410018,0.26817524,628.92,626.87,3.0860261]
[1740936410212,0.26817524,628.91,626.88,2.45198489]
[1740936410412,0.26801706,628.9,626.89,1.12320815]
[1740936410615,0.26801706,628.89,626.9,0.29277431]
[1740936410811,0.26801706,628.88,626.91,0.29277431]
[1740936411013,0.31793469,629.06,626.92,0.82990566]
[1740936411014,0.26801706,628.87,626.92,0.82990566]
[1740936411216,0.26801706,628.86,626.93,1.36258925]
[1740936411418,0.26801706,628.85,626.94,0.29277431]
[1740936411618,0.26801706,628.84,626.94,0.29277431]
[1740936411820,0.26801706,628.83,626.94,0.29277431]
[1740936412018,0.31793469,629.06,626.95,1.89757332]
[1740936412314,0.26802303,629.05,626.98,1.15047448]
[1740936412518,0.26802303,629.04,626.99,1.36107906]
[1740936412718,0.26802303,629.03,627.0,0.29278005]
[1740936412920,0.26802303,629.02,627.01,1.06829901]
[1740936413114,0.26802303,629.01,627.02,0.29278005]
[1740936413319,0.26802303,629.0,627.02,0.29278005]
[1740936413516,0.26802303,629.0,627.04,0.31895891]
[1740936413718,0.26802303,628.99,627.05,0.29278005]
[1740936413915,0.26802303,628.98,627.05,1.36107906]
[1740936414119,0.26802303,628.97,627.04,1.38725792]
[1740936414312,0.26802303,629.05,627.05,1.06829901]
[1740936414513,1.302,628.96,627.06,1.06829901]
[1740936414820,0.26802303,628.95,627.08,0.31893857]
[1740936415122,0.26802303,628.95,627.09,0.82881597]
[1740936415314,0.26802303,628.95,627.08,0.31893857]
[1740936415519,0.26802303,628.95,627.09,0.82872864]
[1740936415819,0.26802303,628.95,627.1,0.82872864]
[1740936416219,0.26802303,628.95,627.11,1.06775571]
[1740936416519,0.26802303,628.95,627.12,0.82872864]
[1740936417122,0.26802303,628.94,627.17,1.15047448]
[1740936417421,0.26802303,628.93,627.18,1.36049843]
[1740936417617,1.302,628.96,627.19,0.29274272]
[1740936417618,0.26802303,628.92,627.19,0.29274272]
[1740936417816,0.26802303,628.91,627.2,0.31887755]
[1740936418015,0.26802303,628.9,627.2,0.31887755]
[1740936418219,0.26798761,628.89,627.2,0.31887755]
[1740936418419,0.26798761,628.89,627.21,1.06775571]
[1740936418714,0.26798761,628.88,627.21,1.06775571]
[1740936418915,0.26798761,628.87,627.21,1.06775571]
[1740936419116,1.302,628.96,627.21,1.06775571]
[1740936419319,0.26805339,628.95,627.21,1.06775571]
[1740936419521,0.26805339,628.94,627.2,0.31887755]
[1740936419717,0.26805339,628.93,627.2,0.31887755]
[1740936420023,0.26805339,628.92,627.21,1.312]
[1740936420417,0.26805339,628.91,627.21,1.312]
[1740936420723,0.26805339,628.9,627.21,1.312]
[1740936420920,0.26805339,628.89,627.21,1.312]
[1740936421127,0.26805339,628.88,627.21,1.312]
[1740936421318,1.302,628.96,627.21,1.312]
[1740936421622,0.26806009,628.95,627.21,1.312]
[1740936421823,1.302,628.96,627.21,1.312]
[1740936421824,0.26806009,628.94,627.21,1.312]
[1740936422024,0.26806009,628.93,627.21,1.312]
[1740936422324,1.302,628.96,627.21,1.312]
[1740936422325,0.26806009,628.92,627.22,1.07614949]
[1740936422524,0.26806009,628.91,627.22,1.07614949]
[1740936422720,0.26806009,628.9,627.23,1.07614949]
[1740936422917,0.26806009,628.89,627.23,1.07614949]
[1740936423219,0.26806009,628.88,627.24,0.8362635]
[1740936423524,0.26806009,628.87,627.25,0.8362635]
[1740936423824,0.26806009,628.86,627.25,1.07614949]
[1740936424017,0.26806009,628.95,627.25,1.07614949]
[1740936424218,0.26806009,628.94,627.22,1.07614949]
[1740936424422,0.26806009,628.93,627.22,1.07614949]
[1740936424719,1.302,628.96,627.22,1.07614949]
[1740936424923,0.26800779,628.95,627.22,1.07614949]
[1740936425224,0.26800779,628.94,627.23,0.83919081]
[1740936425523,0.26800779,628.93,627.24,1.9153403]
[1740936425723,0.26800779,628.92,627.24,1.07614949]
[1740936425921,0.26800779,628.92,627.25,1.07614949]
[1740936426120,0.26800779,628.91,627.25,1.07614949]
[1740936426318,1.302,628.96,627.26,0.83941492]
[1740936426520,0.26774453,628.95,627.27,0.83941492]
[1740936426823,0.26774453,628.94,627.28,1.07614949]
[1740936427025,0.26774453,628.93,627.28,1.07614949]
[1740936427224,0.26774453,628.92,627.29,0.83953933]
[1740936427521,0.26774453,628.91,627.22,1.07614949]
[1740936427723,1.302,628.96,627.22,1.07614949]
[1740936427724,0.26774453,628.9,627.23,0.83975012]
[1740936427922,0.26774453,628.89,627.24,0.83975012]
[1740936428122,0.26783708,628.88,627.25,1.91589961]
[1740936428323,0.26783708,628.87,627.26,0.83965746]
[1740936428521,0.26783708,628.86,627.26,1.07614949]
[1740936428720,0.26783708,628.85,627.26,1.07614949]
[1740936428925,0.26783708,628.84,627.21,1.312]
[1740936429126,0.26783708,628.83,627.21,1.312]
[1740936429319,0.26783708,628.82,627.21,1.312]
[1740936429525,0.26783708,628.81,627.21,1.312]
[1740936429725,1.302,628.96,627.21,1.312]
[1740936430027,0.2673403,628.95,627.21,1.312]
[1740936430221,0.2673403,628.94,627.21,1.312]
[1740936430426,0.2673403,628.93,627.21,1.312]
[1740936430627,0.2673403,628.92,627.21,1.312]
[1740936430830,0.2673403,628.91,627.21,1.312]
[1740936431021,0.2673403,628.9,627.21,1.312]
[1740936431225,0.2673403,628.89,627.21,1.312]
[1740936431423,0.2673403,628.88,627.21,1.312]
[1740936431626,0.2673403,628.87,627.21,1.312]
[1740936431826,0.2673403,628.86,627.21,1.312]
[1740936432026,0.2673403,628.85,627.21,1.312]
[1740936432228,0.2673403,628.84,627.21,1.312]
[1740936432429,0.2673403,628.83,627.21,1.312]
[1740936432623,0.2673403,628.82,627.21,1.312]
[1740936432826,0.2673403,628.81,627.21,1.312]
[1740936433026,0.2673403,628.8,627.21,1.312]
[1740936433221,0.2673403,628.79,627.22,1.16]
[1740936433430,0.2673403,628.78,627.22,1.16]
[1740936433629,0.2673403,628.77,627.22,1.16]
[1740936433823,0.2673403,628.76,627.22,1.16]
[1740936434022,0.2673403,628.75,627.22,1.16]
[1740936434328,0.2673403,628.74,627.22,1.16]
[1740936434529,0.2673403,628.73,627.22,1.16]
[1740936434732,0.2673403,628.72,627.22,1.16]
[1740936434927,0.2673403,628.71,627.22,1.16]
[1740936435122,0.2673403,628.7,627.22,1.16]
[1740936435326,0.2673403,628.69,627.22,1.16]
[1740936435629,0.2673403,628.68,627.22,1.16]
[1740936435821,0.2673403,628.67,627.22,1.16]
[1740936436023,0.2673403,628.66,627.22,1.16]
[1740936436222,0.2673403,628.65,627.22,1.16]
[1740936436527,0.2673403,628.64,627.22,1.16]
[1740936436729,0.2673403,628.63,627.22,1.16]
[1740936436929,0.26735673,628.62,627.22,1.16]
[1740936437125,0.26735673,628.61,627.22,1.16]
[1740936437329,0.26735673,628.6,627.22,1.16]
[1740936437523,0.26735673,628.59,627.22,1.16]
[1740936437725,0.26735673,628.58,627.22,1.16]
[1740936437928,0.26735673,628.57,627.22,1.16]
[1740936438125,0.26735673,628.56,627.22,1.16]
[1740936438330,0.26735673,628.55,627.22,1.16]
[1740936438529,0.26735673,628.54,627.22,1.16]
[1740936438830,0.26735673,628.53,627.22,1.16]
[1740936439029,0.26735673,628.52,627.22,1.16]
[1740936439226,0.26735673,628.51,627.22,1.16]
[1740936439429,0.26735673,628.63,627.22,1.16]
[1740936439730,0.26735673,628.62,627.22,1.16]
[1740936439931,0.26735673,628.61,627.22,1.16]
[1740936440127,0.26735673,628.63,627.22,1.16]
[1740936440333,0.26735673,628.62,627.22,1.16]
[1740936440533,0.26735673,628.61,627.22,1.16]
[1740936440731,0.26735673,628.6,627.22,1.16]
[1740936440931,0.26735673,628.63,627.22,1.16]
[1740936441133,0.26735673,628.59,627.22,1.16]
[1740936441330,0.26735673,628.62,627.22,1.16]
[1740936441531,0.26735673,628.61,627.22,1.16]
[1740936441727,0.26735673,628.6,627.22,1.16]
[1740936441925,0.26735673,628.59,627.22,1.16]
[1740936442131,0.26735673,628.58,627.22,1.16]
[1740936442333,0.26735673,628.57,627.22,1.16]
[1740936442534,0.26735673,628.56,627.22,1.16]
[1740936442735,0.26735673,628.55,627.22,1.16]
[1740936442931,0.26735673,628.54,627.22,1.16]
[1740936443129,0.26735673,628.53,627.22,1.16]
[1740936443335,0.31821291,628.51,627.22,1.16]
[1740936443535,0.26735673,628.5,627.22,1.16]
[1740936443731,0.26735673,628.49,627.22,1.16]
[1740936443929,0.26735673,628.48,627.22,1.16]
[1740936444135,0.26735673,628.47,627.22,1.16]
[1740936444330,0.26735673,628.46,627.22,1.16]
[1740936444537,0.26735673,628.45,627.22,1.16]
[1740936444737,0.26735673,628.44,627.22,1.16]
[1740936444933,0.26735673,628.43,627.22,1.16]
[1740936445338,0.26735673,628.42,627.22,1.16]
[1740936445536,0.26735673,628.41,627.22,1.16]
[1740936445732,0.26735673,628.5,627.22,1.16]
[1740936447040,0.26735673,628.49,627.22,1.16]
[1740936447241,0.26735673,628.48,627.22,1.16]
[1740936447540,0.26735673,628.47,627.22,1.16]
[1740936447741,0.26735673,628.46,627.22,1.16]
[1740936448041,0.26735673,628.45,627.22,1.16]
[1740936448242,0.26735673,628.44,627.22,1.16]
[1740936448441,0.26735673,628.43,627.22,1.16]
[1740936448643,0.26735673,628.42,627.22,1.16]
[1740936448846,0.26735673,628.41,627.22,1.16]
[1740936449043,0.26735673,628.4,627.22,1.16]
[1740936449343,0.26735673,628.39,627.22,1.16]
[1740936449544,0.31828381,628.37,627.22,1.16]
[1740936449744,0.26735673,628.36,627.22,1.16]
[1740936449944,0.26735673,628.35,627.22,1.16]
[1740936450145,0.26735673,628.34,627.22,1.16]
[1740936450345,0.26735673,628.36,627.22,1.16]
[1740936451339,0.26735673,628.36,627.23,1.806]
[1740936451741,0.26735673,628.35,627.23,1.806]
[1740936452146,0.26735673,628.34,627.23,1.806]
[1740936452346,0.26735673,628.33,627.23,1.806]
[1740936452539,0.26735673,628.32,627.23,1.806]
[1740936452744,0.31831927,628.3,627.23,1.806]
[1740936452946,0.26735673,628.29,627.23,1.806]
[1740936453142,0.26735673,628.28,627.23,1.806]
[1740936453344,0.26735673,628.27,627.23,1.806]
[1740936453542,0.26735673,628.26,627.23,1.806]
[1740936453746,0.26735673,628.25,627.23,1.806]
[1740936453953,0.26735673,628.24,627.23,1.806]
[1740936454143,0.26735673,628.23,627.23,1.806]
[1740936454344,0.26735673,628.29,627.23,1.806]
[1740936454545,0.26735673,628.28,627.23,1.806]
[1740936454751,0.26735673,628.27,627.23,1.806]
[1740936454950,0.26735673,628.26,627.23,1.806]
[1740936455146,0.26735673,628.25,627.23,1.806]
[1740936455348,0.26735673,628.24,627.23,1.806]
[1740936455646,0.26735673,628.23,627.23,1.806]
[1740936455946,0.26735673,628.22,627.23,1.806]
[1740936456250,0.26735673,628.29,627.23,1.806]
[1740936456448,0.26735673,628.28,627.23,1.806]
[1740936456646,0.26735673,628.29,627.23,1.806]
[1740936456851,0.26735673,628.28,627.23,1.806]
[1740936457152,0.26702408,628.27,627.23,1.806]
[1740936457356,0.26702408,628.26,627.23,1.806]
[1740936457547,0.31834967,628.24,627.23,1.806]
[1740936457752,0.26702408,628.23,627.23,1.806]
[1740936458849,0.26702408,628.23,627.24,1.012]
[1740936459447,0.26702408,628.22,627.24,1.012]
[1740936459650,0.26702408,628.21,627.24,1.012]
[1740936459949,0.26702408,628.2,627.24,1.012]
[1740936460146,0.26702408,628.19,627.24,1.012]
[1740936460347,0.26702408,628.18,627.24,1.012]
[1740936460652,0.26702408,628.17,627.24,1.012]
[1740936460846,0.26702408,628.16,627.24,1.012]
[1740936461075,1.40202408,628.16,627.24,1.012]
[1740936461252,0.26702408,628.15,627.24,1.012]
[1740936461553,0.26702408,628.14,627.24,1.012]
[1740936461853,0.26702408,628.13,627.24,1.012]
[1740936462054,0.26702408,628.12,627.24,1.012]
[1740936462251,0.26702408,628.11,627.24,1.012]
[1740936462447,0.26702408,628.1,627.24,1.012]
[1740936462653,0.26702408,628.09,627.24,1.012]
[1740936462848,0.26702408,628.08,627.24,1.012]
[1740936463052,0.26702408,628.07,627.24,1.012]
[1740936463252,0.26702408,628.06,627.24,1.012]
[1740936463553,0.26702408,628.05,627.24,1.012]
[1740936463748,1.135,628.16,627.24,1.012]
[1740936463749,0.26702408,628.04,627.24,1.012]
[1740936463953,0.26702408,628.03,627.24,1.012]
[1740936464251,0.26702408,628.02,627.24,1.012]
[1740936464459,0.26702408,628.01,627.24,1.012]
[1740936464658,0.26702408,628.0,627.24,1.012]
[1740936464958,0.26702408,627.99,627.24,1.012]
[1740936465154,0.26702408,627.98,627.24,1.012]
[1740936465361,0.26702408,627.97,627.24,1.012]
[1740936465659,0.31849162,627.96,627.25,1.517]
[1740936465861,0.26662816,627.95,627.25,1.517]
[1740936466161,0.26662816,627.94,627.25,1.517]
[1740936466358,0.26662816,627.93,627.25,1.517]
[1740936466554,0.26662816,627.92,627.25,1.517]
[1740936466758,0.26662816,627.91,627.25,1.517]
[1740936467061,0.26662816,627.9,627.25,1.517]
[1740936467256,0.26662816,627.89,627.25,1.517]
[1740936467461,0.26662816,627.88,627.25,1.517]
[1740936467660,0.26662816,627.87,627.25,1.517]
[1740936467859,0.26662816,627.86,627.25,1.517]
[1740936468062,0.26662816,627.85,627.25,1.517]
[1740936468363,0.26662816,627.84,627.25,1.517]
[1740936468561,0.58518573,627.83,627.25,1.517]
[1740936468762,0.31855757,627.83,627.25,1.517]
[1740936469062,0.2664506,627.82,627.25,1.517]
[1740936472763,0.2664506,627.81,627.25,1.517]
[1740936472964,0.2664506,627.8,627.25,1.517]
[1740936473159,0.2664506,627.79,627.25,1.517]
[1740936473358,0.2664506,627.78,627.25,1.517]
[1740936473560,0.2664506,627.77,627.25,1.517]
[1740936473764,0.58504369,627.76,627.25,1.517]
[1740936474066,0.2664506,627.75,627.25,1.517]
[1740936475862,0.2664506,627.74,627.25,1.517]
[1740936476163,0.2664506,627.73,627.25,1.517]
[1740936476363,0.2664506,627.72,627.25,1.517]
[1740936476562,0.2664506,627.71,627.25,1.517]
[1740936476763,0.2664506,627.7,627.25,1.517]
[1740936476960,0.2664506,627.69,627.25,1.517]
[1740936477164,0.2664506,627.68,627.25,1.517]
[1740936477365,0.2664506,627.67,627.25,1.517]
[1740936477667,0.2664506,627.66,627.25,1.517]
[1740936478062,0.2664506,627.65,627.25,1.517]
[1740936478264,0.2664506,627.75,627.25,1.517]
[1740936479765,0.26644811,627.74,627.25,1.517]
[1740936479966,0.26644811,627.75,627.25,1.517]
[1740936480166,0.26644811,627.74,627.25,1.517]
[1740936480360,0.26644811,627.75,627.25,1.517]
[1740936482564,0.31859309,627.76,627.25,1.517]
[1740936482770,0.26656147,627.75,627.25,1.517]
[1740936483564,0.31859309,627.76,627.25,1.517]
[1740936483769,0.26653164,627.75,627.25,1.517]
[1740936484364,0.31859309,627.76,627.25,1.517]
[1740936484770,1.532,627.88,627.25,1.517]
[1740936484969,0.26653629,627.87,627.25,1.517]
[1740936486372,0.26653629,627.86,627.25,1.517]
[1740936486575,0.26653629,627.85,627.25,1.517]
[1740936486778,0.26653629,627.84,627.25,1.517]
[1740936486971,0.26653629,627.83,627.25,1.517]
[1740936487277,0.26653629,627.82,627.25,1.517]
[1740936487476,0.26653629,627.81,627.25,1.517]
[1740936487669,1.532,627.88,627.25,1.517]
[1740936487873,0.26629944,627.87,627.25,1.517]
[1740936488074,0.26629944,627.86,627.25,1.517]
[1740936488277,0.26629944,627.85,627.25,1.517]
[1740936488475,0.26629944,627.84,627.25,1.517]
[1740936488676,0.26629944,627.83,627.25,1.517]
[1740936488876,0.26629944,627.82,627.25,1.517]
[1740936489076,0.26629944,627.81,627.25,1.517]
[1740936489276,0.26629944,627.8,627.25,1.517]
[1740936489470,0.26629944,627.79,627.25,1.517]
[1740936489670,0.26629944,627.87,627.25,1.517]
[1740936490277,0.31854235,627.86,627.25,1.517]
[1740936490483,0.26629944,627.85,627.25,1.517]
[1740936491279,0.26633354,627.84,627.25,1.517]
[1740936491473,0.26633354,627.85,627.25,1.517]
[1740936492579,0.26633354,627.85,627.24,1.012]
[1740936492878,0.31854235,627.86,627.24,1.012]
[1740936493382,0.2665398,627.85,627.24,1.012]
[1740936494480,2.38027352,628.94,627.24,1.012]
[1740936494780,0.31800546,628.92,627.24,1.012]
[1740936495881,0.26641633,628.91,627.25,0.957]
[1740936496076,0.31802063,628.89,627.25,0.957]
[1740936496280,0.26641633,628.88,627.25,0.957]
[1740936496476,0.31803581,628.86,627.26,1.787]
[1740936496680,0.26641633,628.85,627.26,1.787]
[1740936496880,0.26641633,628.84,627.26,1.787]
[1740936497181,0.26641633,628.83,627.26,1.787]
[1740936497476,0.26641633,628.82,627.26,1.787]
[1740936497680,0.26641633,628.81,627.26,1.787]
[1740936497881,0.26641633,628.8,627.26,1.787]
[1740936498083,0.26641633,628.79,627.26,1.787]
[1740936498377,2.38027352,628.6,627.26,1.787]
[1740936498582,0.26641633,628.59,627.26,1.787]
[1740936498881,0.26641633,628.58,627.26,1.787]
[1740936499080,0.26641633,628.57,627.26,1.787]
[1740936499277,0.26641633,628.56,627.26,1.787]
[1740936499481,0.26641633,628.55,627.26,1.787]
[1740936499682,0.26641633,628.54,627.26,1.787]
[1740936499876,0.26641633,628.53,627.26,1.787]
[1740936500076,0.26641633,628.52,627.26,1.787]
[1740936500279,0.26641633,628.51,627.26,1.787]
[1740936500481,0.26641633,628.5,627.26,1.787]
[1740936500677,0.26641633,628.49,627.26,1.787]
[1740936500880,0.26641633,628.48,627.26,1.787]
[1740936501079,0.26641633,628.47,627.27,1.295]
[1740936501283,0.26641633,628.46,627.27,1.295]
[1740936501576,0.26641633,628.45,627.27,1.295]
[1740936501776,0.26641633,628.44,627.27,1.295]
[1740936501982,0.26641633,628.43,627.27,1.295]
[1740936502281,0.31826355,628.41,627.27,1.295]
[1740936502481,0.26641633,628.4,627.27,1.295]
[1740936502782,0.26641633,628.39,627.27,1.295]
[1740936502983,0.26641633,628.38,627.27,1.295]
[1740936503185,0.26641633,628.37,627.27,1.295]
[1740936503384,0.26641633,628.36,627.27,1.295]
[1740936503586,0.26641633,628.35,627.27,1.295]
[1740936503782,0.26641633,628.34,627.27,1.295]
[1740936503983,0.26641633,628.33,627.27,1.295]
[1740936504180,0.26641633,628.32,627.27,1.295]
[1740936504384,0.26641633,628.31,627.27,1.295]
[1740936504586,0.26641633,628.3,627.27,1.295]
[1740936504885,0.26641633,628.29,627.27,1.295]
[1740936505186,0.26641633,628.28,627.27,1.295]
[1740936505383,0.31833954,628.26,627.27,1.295]
[1740936505584,0.26641633,628.25,627.27,1.295]
[1740936505780,0.26641633,628.24,627.27,1.295]
[1740936505986,0.26641633,628.23,627.27,1.295]
[1740936506187,0.31833954,628.26,627.27,1.295]
[1740936506484,0.26565114,628.25,627.27,1.295]
[1740936506688,0.26565114,628.24,627.27,1.295]
[1740936506989,0.26565114,628.23,627.27,1.295]
[1740936507188,0.26565114,628.22,627.27,1.295]
[1740936507388,0.26565114,628.21,627.27,1.295]
[1740936507688,0.26565114,628.2,627.27,1.295]
[1740936507982,0.26565114,628.19,627.27,1.295]
[1740936508183,0.26565114,628.18,627.27,1.295]
[1740936508387,0.26565114,628.17,627.27,1.295]
[1740936508588,0.31839528,628.15,627.27,1.295]
[1740936508787,0.26589742,628.14,627.27,1.295]
[1740936509083,0.26589742,628.13,627.27,1.295]
[1740936509289,0.31841556,628.11,627.27,1.295]
[1740936509489,0.26589742,628.1,627.27,1.295]
[1740936509689,0.31841556,628.11,627.27,1.295]
[1740936509690,2.38027352,627.97,627.27,1.295]
[1740936509883,0.26589742,627.96,627.27,1.295]
[1740936510088,0.26587729,627.95,627.27,1.295]
[1740936510285,0.26587729,627.94,627.27,1.295]
[1740936510587,0.26587729,627.93,627.27,1.295]
[1740936510788,0.26587729,627.92,627.27,1.295]
[1740936510989,0.26587729,627.91,627.27,1.295]
[1740936511288,0.26587729,627.9,627.27,1.295]
[1740936511490,0.26587729,627.89,627.27,1.295]
[1740936511681,0.26587729,627.88,627.27,1.295]
[1740936511883,0.26587729,627.87,627.27,1.295]
[1740936512185,0.26587729,627.86,627.27,1.295]
[1740936512390,0.26587729,627.85,627.27,1.295]
[1740936512591,0.26587729,627.84,627.27,1.295]
[1740936512791,0.26587729,627.83,627.27,1.295]
[1740936512986,0.26587729,628.1,627.27,1.295]
[1740936513189,0.26587729,628.09,627.27,1.295]
[1740936513393,0.26587729,628.08,627.27,1.295]
[1740936513693,0.26572404,628.07,627.27,1.295]
[1740936513885,0.26572404,628.06,627.27,1.295]
[1740936514087,0.26572404,628.05,627.27,1.295]
[1740936514291,0.26572404,628.04,627.27,1.295]
[1740936514491,0.26572404,628.03,627.27,1.295]
[1740936514687,0.26572404,628.02,627.27,1.295]
[1740936514887,0.5841903,628.01,627.27,2.77]
[1740936515093,0.26572404,628.0,627.27,2.77]
[1740936515392,0.26572404,627.99,627.27,2.77]
[1740936515595,0.26572404,627.98,627.27,2.77]
[1740936515886,0.26572404,627.97,627.27,2.77]
[1740936516091,0.26572404,627.96,627.27,2.77]
[1740936516291,0.26572404,628.0,627.27,2.77]
[1740936516487,0.26572404,627.99,627.27,2.77]
[1740936516690,0.26572404,628.0,627.27,2.77]
[1740936516893,0.26572404,627.99,627.27,2.77]
[1740936517088,0.26572404,627.98,627.27,2.77]
[1740936517289,0.26572404,627.97,627.27,2.77]
[1740936517489,0.26572404,628.0,627.27,2.77]
[1740936517692,0.31846626,628.01,627.27,2.77]
[1740936517693,0.26572404,627.99,627.27,2.77]
[1740936517893,0.26572404,628.0,627.27,2.77]
[1740936518093,0.26572404,627.99,627.27,2.77]
[1740936518293,0.26572404,628.0,627.27,2.77]
[1740936518491,0.26572404,627.99,627.27,2.77]
[1740936518995,0.26572404,627.98,627.27,2.77]
[1740936519196,0.26556091,627.97,627.27,2.77]
[1740936519399,0.26556091,628.0,627.27,2.77]
[1740936519590,0.26556091,627.99,627.27,2.77]
[1740936519790,0.26556091,627.98,627.27,2.77]
[1740936519990,0.26556091,627.97,627.27,2.77]
[1740936520291,0.26556091,627.96,627.27,2.77]
[1740936520596,0.26556091,627.95,627.27,2.77]
[1740936520798,0.26556091,627.94,627.27,2.77]
[1740936520992,0.26556091,627.93,627.27,2.77]
[1740936521193,0.26556091,627.92,627.27,2.77]
[1740936521396,0.26556091,627.91,627.27,2.77]
[1740936521598,0.26556091,627.9,627.27,2.77]
[1740936521899,2.38027352,627.8,627.27,2.77]
[1740936522100,0.26556091,627.79,627.27,2.77]
[1740936522296,0.26556091,627.78,627.27,2.77]
[1740936522491,0.26556091,627.79,627.27,2.77]
[1740936522699,0.26556091,627.78,627.27,2.77]
[1740936522896,0.26556091,627.79,627.27,2.77]
[1740936523092,0.26556091,627.78,627.27,2.77]
[1740936523294,0.26556091,627.79,627.27,2.77]
[1740936523492,0.26556091,627.78,627.27,2.77]
[1740936523692,0.26556091,627.79,627.27,2.77]
[1740936524092,0.26556091,628.0,627.27,2.77]
[1740936524297,0.26556091,627.99,627.27,2.77]
[1740936524493,0.26556091,628.0,627.27,2.77]
[1740936524699,0.26556091,627.99,627.27,2.77]
[1740936524894,0.26556091,628.0,627.27,2.77]
[1740936525293,0.3184764,627.99,627.27,2.77]
[1740936525493,0.26556091,627.98,627.27,2.77]